Cogmind - Beta 13 X1 @@@ ROGUE MODE // 2023.11.11 @ 09:18:37 Player: VR-DUX Result: Destroyed by D-53 Grenadier with Mini Grenade Launcher Performance ------------- Evolutions (0) 0 Regions Visited (2) 400 Robots Destroyed (22) 110 Value Destroyed (336) 336 Prototype IDs (0) 0 Alien Tech Used (0) 0 Bonus (0) 0 TOTAL SCORE: 846 Bonus ------- None Cogmind --------- Core Integrity 0/250 Matter 157/300 Energy 100/100 System Corruption 2% Temperature Cool (0) Movement Core (350) Ox6 Location -10/Mines Parts ------- > --- POWER (1) -------- (None) > --- PROPULSION (2) --- (None) > --- UTILITY (2) ------ Large Storage Unit Structural Scanner > --- WEAPON (2) ------- (None) > --- INVENTORY (15) --- Light Treads Light Treads Compact Wheel Medium Storage Unit Sensor Array Signal Interpreter Propulsion Shielding Light Armor Plating Light Armor Plating Light Assault Rifle Grenade Launcher Mining Laser Peak State ------------ > --- POWER ------------ Ion Engine > --- PROPULSION ------- Light Treads Light Treads > --- UTILITY ---------- Large Storage Unit Sensor Array > --- WEAPON ----------- Light Assault Rifle Light Cannon > --- INVENTORY -------- Light Ion Engine Aluminum Leg Aluminum Leg Wheel Compact Wheel Medium Storage Unit Propulsion Shielding Light Assault Rifle Grenade Launcher Mining Laser [Rating: 8] Favorites ----------- Power Ion Engine Engine Ion Engine Propulsion Light Treads Treads Light Treads Leg Aluminum Leg Utility Large Storage Unit Device Structural Scanner Storage Large Storage Unit Weapon Light Assault Rifle Energy Gun Small Laser Ballistic Gun Light Assault Rifle Ballistic Cannon Light Cannon Launcher Grenade Launcher Build | -11 -10 -10 ------- Run | Jun Mat Min Slots Evolved . | . . . Power . | . . . Propulsion . | . . . Utility . | . . . Weapon . | . . . Parts Attached 21 | . 19 2 Power 4 | . 3 1 Engine 4 | . 3 1 Core . | . . . Reactor . | . . . Propulsion 4 | . 4 . Treads 3 | . 3 . Leg 1 | . 1 . Wheel . | . . . Hover . | . . . Flight . | . . . Utility 3 | . 3 . Device 2 | . 2 . Storage 1 | . 1 . Processor . | . . . Hackware . | . . . Protection . | . . . Artifact . | . . . Weapon 10 | . 9 1 Energy Gun 1 | . 1 . Energy Cannon . | . . . Ballistic Gun 3 | . 3 . Ballistic Cannon 3 | . 3 . Launcher 3 | . 2 1 Special Weapon . | . . . Impact Weapon . | . . . Slashing Weapon . | . . . Piercing Weapon . | . . . Special Melee Weapon . | . . . Unidentified Prototypes . | . . . Parts Lost 7 | . . 7 Power 2 | . . 2 Propulsion 2 | . . 2 Utility . | . . . Weapon 3 | . . 3 Highest Loss Streak 7 | . . 7 To Critical Strikes . | . . . Average Slot Usage (%) 93 | . 92 99 Engine 14 | . 14 14 Treads 23 | . 23 28 Leg 4 | . 5 . Device 7 | . 6 14 Storage 14 | . 14 14 Energy Gun 2 | . 2 . Ballistic Gun 13 | . 13 14 Ballistic Cannon 11 | . 11 13 Launcher 1 | . 1 . Naked Turns . | . . . Heaviest Build 32 | 12 32 30 Greatest Support 40 | 20 40 40 Greatest Overweight (x) . | . . . Average Overweight (x) . | . . . Largest Inventory Capacity 15 | 8 15 15 Average Capacity 12 | 8 12 15 Most Carried 15 | 7 15 14 Average Carried 10 | 6 10 13 Final Capacity 15 | 8 15 15 Final Carried 14 | 7 14 12 Class Distribution -------------------- 100% | Mutant Dominant Class ---------------- Mutant | -10/Materials Mutant | -10/Mines Resources | -11 -10 -10 ----------- Run | Jun Mat Min Matter Collected 486 | 204 282 . Remotely . | . . . Salvage Created 556 | 84 472 . Parts 34 | 4 30 . Haulers Intercepted 2 | . 2 . Recyclers Shooed 1 | . 1 . Parts Field Recycled . | . . . Retrieved Matter . | . . . Parts Self-Destructed . | . . . Prevented . | . . . Kills | -11 -10 -10 ------- Run | Jun Mat Min Combat Hostiles Destroyed 10 | . 10 . Guns 4 | . 4 . Cannons 4 | . 4 . AOE 2 | . 2 . Classes Destroyed 8 | 1 7 . Worker 1 | . 1 . Builder 2 | . 2 . Hauler 2 | . 2 . Recycler 2 | 1 1 . Operator 2 | . 2 . Watcher 3 | . 3 . Swarmer 6 | . 6 . Grunt 4 | . 4 . Best Kill Streak 4 | 1 4 . Combat Bots Only 3 | . 3 . Max Kills in Single Turn 2 | 1 2 . Gunslinging . | . . . Exploded 1 | . 1 . Melee . | . . . Uniques/NPCs Destroyed . | . . . Combat | -11 -10 -10 -------- Run | Jun Mat Min Damage Taken 985 | . 349 636 Core 257 | . 53 204 Absorbed by Shields . | . . . Core Remaining (%) 100 | 100 . . Volleys Fired 55 | 4 48 3 Largest 2 | 2 2 1 Hottest 60 | 60 60 30 Shots Fired 101 | 8 90 3 Gun 63 | 8 55 . Cannon 29 | . 29 . Launcher 9 | . 6 3 Special . | . . . Kinetic 77 | 4 73 . Thermal 15 | 4 11 . Explosive 9 | . 6 3 Electromagnetic . | . . . Robot Hit Streak 5 | 4 5 4 Robot Miss Streak 7 | 1 7 . Penetration Max . | . . . Secondary Targets . | . . . Shots Hit Robots 53 | 5 45 3 Core Hits 36 | 2 31 3 Critical Kills . | . . . Critical Parts Destroyed . | . . . Critical Strikes . | . . . Melee Attacks . | . . . Impact . | . . . Slashing . | . . . Piercing . | . . . Sneak Attacks . | . . . Combat Hostiles . | . . . Follow-up Attacks . | . . . Damage Inflicted 1065 | 48 990 27 Guns 282 | 48 234 . Cannons 294 | . 294 . Explosions 489 | . 462 27 Melee . | . . . Ramming . | . . . Kinetic 488 | 15 473 . Thermal 127 | 33 94 . Explosive 390 | . 363 27 Electromagnetic 60 | . 60 . Impact . | . . . Slashing . | . . . Piercing . | . . . Highest Corruption 2 | . 2 2 Average Corruption 2 | . 2 2 Corruption Purged . | . . . Corruption Blocked . | . . . Effects 3 | . . 3 Message Errors 1 | . . 1 Data Loss (minor) 1 | . . 1 Alerts 1 | . . 1 Overload Shots . | . . . Overflow Damage 16 | . 16 . Projectiles 11 | . 11 . Explosions 5 | . 5 . Melee . | . . . Knockbacks 5 | . 5 . Impact . | . . . Kinetic 4 | . 4 . Secondary 1 | . 1 . Self-Inflicted Damage 168 | . 54 114 Shots 5 | . 2 3 Rammed . | . . . Targets Rammed . | . . . Kicked . | . . . Crushed . | . . . Highest Temperature 40 | 20 40 . Average Temperature 15 | 15 15 . Received Heat Transfer 33 | . 33 . Siege Activations . | . . . Robots Corrupted . | . . . Combat Hostiles . | . . . Parts Fried . | . . . Impact Corruptions . | . . . Robots Melted . | . . . Combat Hostiles . | . . . Parts Melted . | . . . Heat Transferred 250 | 75 175 . Parts Sabotaged . | . . . Parts Stolen . | . . . Parts Stripped . | . . . Power Chain Reactions 1 | . 1 . Missiles Intercepted . | . . . Alert | -11 -10 -10 ------- Run | Jun Mat Min Peak Influence 227 | 5 227 57 Initial 57 | . 3 57 Average 88 | 3 96 55 Maximum Alert Level 1 | . 1 . Low Security (%) 90 | 100 88 100 Level 1 9 | . 11 . Level 2 . | . . . Level 3 . | . . . Level 4 . | . . . Level 5 . | . . . High Security . | . . . Max Security . | . . . Squads Dispatched 2 | . 2 . Investigation . | . . . Extermination . | . . . Reinforcement 2 | . 2 . Assault . | . . . Garrison . | . . . Intercept . | . . . Searches Triggered . | . . . Construction Impeded . | . . . Haulers Reinforced . | . . . Active Scanning Responses . | . . . Cargo Convoy Interrupts . | . . . Stealth | -11 -10 -10 --------- Run | Jun Mat Min Distress Signals 1 | . 1 . Communications Jammed . | . . . Distress Signals . | . . . Times Spotted 21 | . 19 2 Peak Tracking Total 4 | . 4 2 Tactical Retreats . | . . . Traps | -11 -10 -10 ------- Run | Jun Mat Min Traps Triggered 3 | . 3 . Indirectly . | . . . Trap Hack Attempts . | . . . Triggered . | . . . Disarmed . | . . . Reprogrammed . | . . . Reused . | . . . Traps Extracted . | . . . Installed . | . . . Triggered . | . . . Machines | -11 -10 -10 ---------- Run | Jun Mat Min Machines Disabled 2 | . 2 . Max in Single Turn 1 | . 1 . Machines Repaired . | . . . Machines Sabotaged . | . . . Overloaded Fab Kills . | . . . Hacking | -11 -10 -10 --------- Run | Jun Mat Min Machines Accessed 6 | . 6 . Terminals 4 | . 4 . Fabricators . | . . . Repair Stations . | . . . Recycling Units 2 | . 2 . Scanalyzers . | . . . Garrison Access . | . . . Total Hacks 16 | . 16 . Successful 7 | . 7 . Failed 9 | . 9 . Catastrophic 2 | . 2 . Database Lockouts . | . . . Manual 13 | . 13 . Terminals 14 | . 14 . Fabricators . | . . . Repair Stations . | . . . Recycling Units 2 | . 2 . Scanalyzers . | . . . Garrison Access . | . . . Terminal Hacks 6 | . 6 . Robot Analysis 5 | . 5 . Zone Layout 1 | . 1 . Fabricator Hacks . | . . . Repair Station Hacks . | . . . Recycling Unit Hacks 1 | . 1 . Retrieve Components 1 | . 1 . Scanalyzer . | . . . Garrison Access Hacks . | . . . Unauthorized Hacks . | . . . Terminals . | . . . Fabricators . | . . . Repair Stations . | . . . Recycling Units . | . . . Scanalyzers . | . . . Garrison Access . | . . . Data Cores Recovered . | . . . Used . | . . . Hacking Detections 5 | . 5 . Full Trace Events . | . . . Feedback Events . | . . . Feedback Blocked . | . . . Robot Schematics Acquired . | . . . Robots Built . | . . . Authchips . | . . . Time . | . . . Total Robot Build Rating . | . . . Part Schematics Acquired . | . . . Parts Built . | . . . Authchips . | . . . Time . | . . . Total Part Build Rating . | . . . Parts Repaired . | . . . Time . | . . . Parts Recycled . | . . . Recycled Matter . | . . . Retrieved Matter . | . . . Retrieved Components 1 | . 1 . Parts Scanalyzed . | . . . Part Schematics Acquired . | . . . Parts Damaged . | . . . Bothacking | -11 -10 -10 ------------ Run | Jun Mat Min Used RIF Installer . | . . . Robots Hacked . | . . . Non-combat . | . . . Combat . | . . . Robot Hacks Applied . | . . . Relay Couplers Released . | . . . Fabnet Peak Effective % . | . . . Robots Rewired . | . . . Allies Hacked . | . . . Hacks Repelled . | . . . Allies | -11 -10 -10 -------- Run | Jun Mat Min Total Allies . | . . . Largest Group . | . . . Highest-Rated Group . | . . . Highest-Rated Ally . | . . . Total Orders . | . . . Ally Attacks . | . . . Total Damage . | . . . Kills . | . . . Allies Corrupted . | . . . Allies Melted . | . . . Intel | -11 -10 -10 ------- Run | Jun Mat Min Robot Analysis Total 5 | . 5 . Derelict Logs Recovered 1 | . . 1 Drone Launches . | . . . Drone Recoveries . | . . . Exploration | -11 -10 -10 ------------- Run | Jun Mat Min Turns Passed 1337 | 27 1113 197 Spaces Moved 730 | 13 599 118 Core . | . . . Treads 592 | . 474 118 Legs 138 | 13 125 . Wheels . | . . . Hover . | . . . Flight . | . . . Fastest Speed 120 | 120 120 160 Average Speed 152 | 120 151 160 Slowest Speed 160 | 120 160 160 Overloaded Moves . | . . . Propulsion Burnouts . | . . . Robots Hopped . | . . . Cave-ins Triggered . | . . . Exploration Rate (%) 41 | 3 93 28 Regions Visited 2 Branch Regions 1 Pre-discovered Areas . | . . . Known Exits Taken . | . . . Unknown Exits Taken 2 | 1 1 . Scrap Searched . | . . . Spaces Dug . | . . . Terrain Destroyed 28 | . 26 2 Melee . | . . . Projectile . | . . . AOE 28 | . 26 2 Terrain Rammed . | . . . Walls Destroyed . | . . . Machines Disabled . | . . . Actions | -11 -10 -10 --------- Run | Jun Mat Min Total 862 | 17 722 123 Wait 27 | . 27 . Move 728 | 12 598 118 Hop . | . . . Pick Up 17 | 1 16 . Fast Attach 6 | . 6 . Attach 5 | . 3 2 Detach . | . . . Swap 10 | . 10 . Drop 14 | . 14 . Fire 55 | 4 48 3 Melee . | . . . Ram . | . . . Kick . | . . . Crush . | . . . Escape Stasis . | . . . Rewire . | . . . Trap . | . . . Miscellaneous . | . . . Route ------- -11/Junkyard -10/Materials (discovered 4 exits: [*Mat x3] / [*Min]) -10/Mines (discovered 1 exit: [*Mat]) History --------- Turn | Location | Event 13 | -11/Junkyard | Discovered new exit (range 3) 28 | -11/Junkyard | Entered Materials 308 | -10/Materials | Build established: Mutant 515 | -10/Materials | Discovered new exit (range 15) 746 | -10/Materials | Discovered new exit (range 9) 1058 | -10/Materials | Discovered new exit (range 8) 1124 | -10/Materials | Discovered new exit (range 8) 1141 | -10/Materials | Entered Mines 1157 | -10/Mines | Learned Materials terminal intel 1253 | -10/Mines | Discovered new exit (range 13) 1304 | -10/Mines | Assembled infested the area 1309 | -10/Mines | Assisted by a Guerilla fighting off Assembled 1331 | -10/Mines | Core integrity fell below 50% 1335 | -10/Mines | Core integrity fell below 20% 1338 | -10/Mines | Destroyed by D-53 Grenadier with Mini Grenade Launcher Last Messages --------------- way!" 01316_ HV Slug penetrates Wall. 01317_ C-30 ARC bursts open, deploying its payload. 01317_ D-53 Grenadier unfolds itself. 01317_ T-07 Excavator destroyed. 01317_ U-05 Engineer destroyed. 01318_ HV Slug penetrates D-53 Grenadier. 01318_ HV Slug penetrates Wall. 01328_ Lgt. Cannon destroyed. 01328_ T-07 Excavator destroyed. 01330_ The unstable cave ceiling collapses. 01330_ Lgt. Assault Rifle destroyed. 01330_ Ion Engine destroyed. 01331_ The unstable cave ceiling collapses. 01332_ Lgt. Treads destroyed. 01334_ T-07 Excavator destroyed. 01334_ D-53 Grenadier destroyed. 01335_ The unstable cave ceiling collapses. 01336_ Lgt. Ion Engine destroyed. 01338_ Grenade Launcher destroyed. Map ----- +----------------------------------------------------+ | """ ##????????????????????????????????????????? | | ##????????????????????????????????????????? | | ##????????????????????????????????????????? | | ##????????????????????????????????????????? | | ##????????????????????????????????????????? | | ##????????????????????????????????????????? | | ########????????????????????????????????????????? | | ########????????????????????????????????????????? | | ##??????????????????????????????????????????? | | #### ###########??? ?????????????????????????????? | | #### ###########? ?????????????????????????????? | | ??## ???????????????????????????? | | ??##### ##### ### ?????????????????????????????? | | ??##### ##### #### ????????????????????????????? | | ?????## ##?????? # ???#########????????????????? | | ?????## ##???????## ?######### ????????????????? | | ?????## ##???????## ? # ????????????????? | | ????### ######???## !% ??????????????????? | | ????### ######?? % ###??????????????????? | | ????## ##?##### ## ##??????????????????? | | ????## ##?### ###??????????????????? | | ????## """ ##### ####?????????????????? | | ????## """ ##### ###?????????????????? | | ????## """ ##?????????????????? | | ????## d ##?????????????????? | | ????## #### @ ##?????????????????? | | ????## ######## ##?????????????????? | | ????##### ######### ##?????????????????? | | ???###### ######## = ###?????????????????? | | ######### ###### | |% ####?????????????????? | | ##### ## #### %####??????????????????? | | ## ### ####?????????????????? | | # ###### #####?????########### | | ###### #################### | | ####?## ### ## ######## ## | | ######??### ###########; """ ## | | ######???################ """ ?? | | ####????????####?????????### ######### < """ ## | | ###??????????????????????############### ## | | ??????????????????????????#######????????######### | | ?????????????????????????????????????????######### | | ?????????????????????????????????????????????????? | | ?????????????????????????????????????????????????? | | | | | | | | | | | | | | | +----------------------------------------------------+ Best States ------------- Heat Dissipation 25 Energy Generation 10 Energy Capacity 250 Matter Stores 300 Matter Capacity 300 Sight Range 16 Robot Scan Range 14 Terrain Scan Density 10 Evasion (%) 55 Recoil Reduction 2 Item Schematics ----------------- None Robot Schematics ------------------ None Fabricated ------------ Nothing Alien Tech Used ----------------- None Achievements -------------- None Challenges ------------ None Game ------ Seed FusionMasterRipper Manual? 0 Play Time 00:17:22 Cumulative 178.1 hours Start 2023.11.11 @ 09:00:46 End 2023.11.11 @ 09:18:37 Sessions 1 Manual Loads 0 Difficulty Rogue Special Mode None Game No. 112 Rogue 112 Adventurer 0 Explorer 0 Win Type - Total 4 Types 3/0/1/0/0/0/0/0/0 Lore% 53 Gallery% 54 Achievement% 50 Wizard Run 0 Options --------- ASCII 0 Keyboard 0 Movement Mouse Keybinds 0 Fullscreen 1 Font 18/SmallcapsGlow Map View 76x50 Tactical HUD 1 Map Filters NONE Filters NONE Steam 1 RUN: eed41dd7-4647-4664-8999-08e77c81e7eb